Cogmind - Beta 10.2 @@@ ROGUE MODE // 2022.01.16 @ 19:14:26 Player: SURFACESEEKER Result: Destroyed by Y-54 Guardian with Flak Gun Performance ------------- Evolutions (3) 1500 Regions Visited (10) 2000 Robots Destroyed (73) 365 Value Destroyed (2813) 2813 Prototype IDs (24) 480 Alien Tech Used (0) 0 Bonus (1371) 1371 TOTAL SCORE: 8529 Bonus ------- High Alert Combat Kills 210 Follower Combat Kills 347 Entered Garrisons 200 Used RIF Installer 500 Aligned with FarCom 300 Friendly Fire -186 Cogmind --------- Core Integrity 0/700 Matter 258/300 Energy 334/340 System Corruption 6% Temperature Cool (15) Movement Treading (180) Ox1 Location -7/Factory Parts ------- > --- POWER (2) -------- Improved Deuterium Engine Light Angular Momentum Engine > --- PROPULSION (4) --- Light Treads Light Treads Light Treads > --- UTILITY (5) ------ Large Storage Unit High-capacity Storage Unit Terrain Scan Processor Improved Light Armor Plating Relay Coupler [NC] (20) > --- WEAPON (2) ------- Flak Gun Flak Gun > --- INVENTORY (18) --- Improved Heat Sink Large Storage Unit Advanced Sensor Array Relay Coupler [NC] (31) Relay Coupler [ARC] (10) Relay Coupler [Swarmer] (35) Relay Coupler [Grunt] (25) Relay Coupler [Sentry] (21) Relay Coupler [Demolisher] (25) Relay Coupler [Hunter] (18) Proton Cannon Firepult Flail Peak State ------------ > --- POWER ------------ Nuclear Core Light Nuclear Core > --- PROPULSION ------- Flying Fortress v7 > --- UTILITY ---------- Improved Heat Sink Large Storage Unit High-capacity Storage Unit Terrain Scan Processor Particle Charger > --- WEAPON ----------- Firepult > --- INVENTORY -------- Aluminum Leg Improved Heat Shielding Large Storage Unit Large Storage Unit Advanced Sensor Array Improved Terrain Scanner Relay Coupler [NC] Relay Coupler [ARC] Relay Coupler [Swarmer] Relay Coupler [Sentry] Pulse Rifle Datajack Flail Deploy-a-Sentry Deploy-a-Sentry Deploy-a-Sentry [Rating: 73] Favorites ----------- Power Improved Deuterium Engine Engine Improved Deuterium Engine Power Core Light Nuclear Core Propulsion Aluminum Leg Treads Light Treads Leg Aluminum Leg Flight Unit Flying Fortress v7 Utility Large Storage Unit Device Improved Terrain Scanner Storage Large Storage Unit Processor Terrain Scan Processor Hackware Relay Coupler [Sentry] Protection Hardened Light Armor Plating Weapon Light EM Pulse Cannon Energy Gun EM Pulse Gun Energy Cannon Light EM Pulse Cannon Ballistic Gun Autogun Ballistic Cannon Improved Light Cannon Special Weapon Remote Datajack Impact Weapon Flail Special Melee Weapon Datajack Build | -11 -10 -10 -9 -9 -9 -8 -8 -7 -7 -7 ------- Run | Scr Mat Min Mat Min Exi Min Mat Fac Gar Fac Slots Evolved 6 | . . . 2 . . . 2 2 . . Power 1 | . . . . . . . . 1 . . Propulsion 2 | . . . . . . . 2 . . . Utility 3 | . . . 2 . . . . 1 . . Weapon . | . . . . . . . . . . . Parts Attached 118 | 8 12 4 24 1 2 1 4 2 51 9 Power 22 | 1 3 1 5 . . . 1 1 9 1 Engine 13 | 1 3 . 3 . . . . 1 4 1 Core 9 | . . 1 2 . . . 1 . 5 . Reactor . | . . . . . . . . . . . Propulsion 27 | 2 4 1 6 . . . 1 . 13 . Treads 8 | . . . . . . . . . 8 . Leg 16 | 2 4 1 6 . . . . . 3 . Wheel . | . . . . . . . . . . . Hover . | . . . . . . . . . . . Flight 3 | . . . . . . . 1 . 2 . Utility 28 | 3 . 2 6 1 1 1 . 1 10 3 Device 13 | 1 . 1 2 1 . 1 . 1 5 1 Storage 6 | 1 . 1 2 . 1 . . . 1 . Processor 2 | 1 . . 1 . . . . . . . Hackware 3 | . . . . . . . . . 2 1 Protection 4 | . . . 1 . . . . . 2 1 Artifact . | . . . . . . . . . . . Weapon 41 | 2 5 . 7 . 1 . 2 . 19 5 Energy Gun 8 | 1 1 . 3 . . . 1 . 2 . Energy Cannon 6 | . 3 . 1 . . . . . 1 1 Ballistic Gun 14 | 1 1 . 3 . . . . . 7 2 Ballistic Cannon 3 | . . . . . 1 . . . 2 . Launcher . | . . . . . . . . . . . Special Weapon 1 | . . . . . . . . . . 1 Impact Weapon 6 | . . . . . . . 1 . 5 . Slashing Weapon . | . . . . . . . . . . . Piercing Weapon . | . . . . . . . . . . . Special Melee Weapon 3 | . . . . . . . . . 2 1 Unidentified Prototypes 1 | . . . . . . . . . 1 . Parts Lost 38 | . 3 . 9 . . . . . 22 4 Power 9 | . . . 2 . . . . . 6 1 Propulsion 10 | . 1 . 2 . . . . . 6 1 Utility 5 | . . . 1 . . . . . 3 1 Weapon 14 | . 2 . 4 . . . . . 7 1 Highest Loss Streak 8 | . 2 . 8 . . . . . 7 2 Average Slot Usage (%) 92 | . 72 98 90 100 100 100 72 71 84 98 Engine 7 | . 11 1 5 11 11 11 2 7 5 14 Core 4 | . . 12 5 . . . 6 7 7 . Treads 7 | . . . . . . . . . 11 29 Leg 14 | . 19 28 20 22 22 22 . . 5 . Flight 1 | . . . . . . . 9 7 4 . Device 6 | . . 3 3 11 11 11 9 9 8 4 Storage 15 | . . 9 16 22 22 22 18 15 15 15 Processor 9 | . 14 14 10 11 11 11 9 7 7 7 Hackware 1 | . . . . . . . . . 1 8 Protection 1 | . . . 6 . . . . . 2 1 Energy Gun 1 | . 9 . 3 . . . . 7 1 . Energy Cannon 6 | . 14 28 12 . . . . . . 2 Ballistic Gun 7 | . 1 . 5 22 14 11 9 7 7 4 Ballistic Cannon 1 | . . . . . 7 11 5 . . . Impact Weapon 1 | . . . . . . . 3 . 1 4 Naked Turns . | . . . . . . . . . . . Heaviest Build 86 | 12 13 29 51 42 61 61 63 68 86 79 Greatest Support 80 | 20 20 20 20 20 20 20 72 72 80 80 Greatest Overweight (x) 24 | . 1 1 12 2 3 3 . . 24 1 Average Overweight (x) 1 | . . . 1 2 2 3 . . . . Largest Inventory Capacity 18 | 6 4 10 16 16 18 18 18 18 18 18 Average Capacity 15 | 4 4 7 12 16 16 18 18 18 18 18 Most Carried 18 | 4 4 10 16 16 18 18 18 17 18 18 Average Carried 14 | 2 3 7 11 15 15 18 17 15 17 17 Final Capacity 18 | 4 4 10 16 16 18 18 18 18 18 18 Final Carried 18 | 4 4 10 15 16 18 18 16 17 18 14 Class Distribution -------------------- 47% | Scavenger-Mutant 24% | Mutant 12% | Scavenger-Skirmisher 10% | Bothacker-Mutant 5% | Scout Dominant Class ---------------- Mutant | -10/Materials Mutant | -10/Mines Scavenger-Mutant | -9/Materials Scavenger-Mutant | -9/Mines Scavenger-Mutant | -9/Exiles Scavenger-Skirmisher | -8/Mines Scout | -8/Materials Scout | -7/Factory Scavenger-Mutant | -7/Garrison Bothacker-Mutant | -7/Factory Resources | -11 -10 -10 -9 -9 -9 -8 -8 -7 -7 -7 ----------- Run | Scr Mat Min Mat Min Exi Min Mat Fac Gar Fac Matter Collected 1986 | 290 91 48 319 40 . 38 36 . 875 249 Remotely . | . . . . . . . . . . . Salvage Created 2684 | 54 208 208 1047 57 . 13 42 . 895 160 Parts 169 | 11 11 13 63 12 . 4 . . 41 14 Haulers Intercepted 3 | . . . 2 . . . 1 . . . Recyclers Shooed . | . . . . . . . . . . . Parts Field Recycled . | . . . . . . . . . . . Retrieved Matter . | . . . . . . . . . . . Parts Self-Destructed . | . . . . . . . . . . . Prevented . | . . . . . . . . . . . Kills | -11 -10 -10 -9 -9 -9 -8 -8 -7 -7 -7 ------- Run | Scr Mat Min Mat Min Exi Min Mat Fac Gar Fac Combat Hostiles Destroyed 53 | . 6 3 20 . . . . . 21 3 Guns 26 | . 1 . 9 . . . . . 14 2 Cannons 19 | . 2 3 10 . . . . . 4 . AOE 5 | . 2 . . . . . . . 2 1 Classes Destroyed 11 | 1 4 . 4 . . . . . 1 1 Worker 2 | . 1 1 . . . . . . . . Builder 3 | . 1 1 . 1 . . . . . . Tunneler 8 | 3 . 1 1 2 . 1 . . . . Hauler 3 | . . . 2 . . . 1 . . . Watcher 3 | . . . 3 . . . . . . . Swarmer 16 | . 3 . 6 . . . . . 7 . Grunt 19 | . 3 3 9 . . . . . 4 . Brawler 1 | . . . 1 . . . . . . . Sentry 12 | . . . 5 . . . . . 7 . Hunter 3 | . . . . . . . . . 3 . Programmer 3 | . . . . . . . . . . 3 Best Kill Streak 4 | 1 3 2 3 2 . 1 1 . 4 1 Combat Bots Only 4 | . 3 2 3 . . . . . 4 1 Max Kills in Single Turn 2 | 1 2 1 2 1 . 1 1 . 1 1 Gunslinging . | . . . . . . . . . . . Exploded 2 | . 2 . . . . . . . 1 1 Melee . | . . . . . . . . . . . Uniques/NPCs Destroyed . | . . . . . . . . . . . Combat | -11 -10 -10 -9 -9 -9 -8 -8 -7 -7 -7 -------- Run | Scr Mat Min Mat Min Exi Min Mat Fac Gar Fac Damage Taken 6724 | . 492 192 1380 3 . . 156 . 3770 731 Core 1073 | . 109 19 197 . . . 45 . 580 123 Absorbed by Shields 29 | . . . . . . . . . 29 . Core Remaining (%) 72 | 100 . 48 . . . 50 91 . . . Volleys Fired 264 | 10 29 25 76 6 . 1 2 . 93 22 Largest 2 | 2 2 2 2 2 . 2 2 . 2 2 Hottest 250 | 70 70 112 112 43 . 62 62 . 250 75 Shots Fired 445 | 20 38 50 151 12 . 2 4 . 134 34 Gun 268 | 20 30 . 78 12 . 1 2 . 101 24 Cannon 174 | . 8 50 73 . . 1 2 . 33 7 Launcher . | . . . . . . . . . . . Special 3 | . . . . . . . . . . 3 Kinetic 214 | 10 9 . 43 12 . 2 4 . 110 24 Thermal 55 | 10 21 . . . . . . . 24 . Explosive . | . . . . . . . . . . . Electromagnetic 173 | . 8 50 108 . . . . . . 7 Robot Hit Streak 22 | 7 10 8 13 9 . 5 6 . 22 9 Robot Miss Streak 16 | 2 3 5 3 1 . . . . 16 4 Penetration Max . | . . . . . . . . . . . Secondary Targets 3 | . . . 1 . . . . . 2 . Max Gunslinging Chain 1 | . . . 1 . . . . . 1 . Shots Hit Robots 336 | 15 25 26 102 9 . 1 2 . 121 35 Core Hits 147 | 4 12 8 42 4 . 1 1 . 63 12 Critical Hits 2 | . 1 . 1 . . . . . . . Critical Kills 1 | . 1 . . . . . . . . . Critical Parts Destroyed 1 | . . . 1 . . . . . . . Melee Attacks 56 | . . . . . . . 3 . 47 6 Impact 39 | . . . . . . . 3 . 32 4 Slashing . | . . . . . . . . . . . Piercing . | . . . . . . . . . . . Sneak Attacks 10 | . . . . . . . . . 9 1 Combat Hostiles . | . . . . . . . . . . . Follow-up Attacks . | . . . . . . . . . . . Damage Inflicted 5700 | 129 461 562 1995 117 . 13 33 . 1976 414 Guns 2639 | 129 176 . 677 99 . 13 15 . 1294 236 Cannons 2275 | . 146 547 1168 . . . . . 368 46 Explosions 472 | . 122 . 132 . . . . . 138 80 Melee 246 | . . . . . . . 18 . 176 52 Ramming 68 | . 17 15 18 18 . . . . . . Kinetic 2209 | 67 54 . 395 99 . 13 15 . 1330 236 Thermal 988 | 62 244 . 132 . . . . . 470 80 Explosive . | . . . . . . . . . . . Electromagnetic 2189 | . 146 547 1450 . . . . . . 46 Impact 246 | . . . . . . . 18 . 176 52 Slashing . | . . . . . . . . . . . Piercing . | . . . . . . . . . . . Highest Corruption 6 | . . . . . . . . . . 6 Average Corruption 4 | . . . . . . . . . . 4 Corruption Purged . | . . . . . . . . . . . Effects 13 | . . . . . . . . . . 13 Message Errors 3 | . . . . . . . . . . 3 Matter Fused 1 | . . . . . . . . . . 1 Heat Flow Errors 1 | . . . . . . . . . . 1 Energy Discharges 2 | . . . . . . . . . . 2 Data Loss (minor) 5 | . . . . . . . . . . 5 Targeting Errors 1 | . . . . . . . . . . 1 Overload Shots . | . . . . . . . . . . . Overflow Damage 141 | . 17 48 32 . . . . . . 44 Projectiles 80 | . . 48 32 . . . . . . . Explosions 17 | . 17 . . . . . . . . . Melee 44 | . . . . . . . . . . 44 Knockbacks 1 | . . . . . . . . . 1 . Impact . | . . . . . . . . . . . Kinetic 1 | . . . . . . . . . 1 . Secondary . | . . . . . . . . . . . Self-Inflicted Damage 124 | . 7 7 52 3 . . . . 11 44 Shots 5 | . . . 2 . . . . . 2 1 Rammed 10 | . 5 1 2 1 . . . . . 1 Targets Rammed 13 | . 6 2 2 2 . . . . . 1 Kicked 3 | . 1 1 . 1 . . . . . . Crushed . | . . . . . . . . . . . Highest Temperature 418 | 50 379 198 229 . . 16 29 . 418 309 Average Temperature 91 | 22 163 67 65 . . 12 14 . 115 117 Received Heat Transfer 1806 | . 165 66 528 . . . 63 . 864 120 Effects 13 | . 3 . 2 . . . . . 7 1 Shutdowns 3 | . 1 . . . . . . . 2 . Energy Bleed 2 | . . . . . . . . . 2 . Interference 7 | . 2 . 2 . . . . . 3 . Matter Decay 1 | . . . . . . . . . . 1 Siege Activations . | . . . . . . . . . . . Robots Corrupted 1 | . . . 1 . . . . . . . Combat Hostiles 1 | . . . 1 . . . . . . . Parts Fried 11 | . . 3 8 . . . . . . . Impact Corruptions 4 | . . . . . . . . . . 4 Robots Melted 2 | . 1 . . . . . . . 1 . Combat Hostiles 2 | . 1 . . . . . . . 1 . Parts Melted 5 | . 2 . . . . . . . 3 . Heat Transferred 2586 | 185 470 . 250 . . . . . 1631 50 Parts Sabotaged . | . . . . . . . . . . . Parts Stolen . | . . . . . . . . . . . Parts Stripped . | . . . . . . . . . . . Power Chain Reactions 4 | . 1 . 2 . . . . . . 1 Missiles Intercepted . | . . . . . . . . . . . Alert | -11 -10 -10 -9 -9 -9 -8 -8 -7 -7 -7 ------- Run | Scr Mat Min Mat Min Exi Min Mat Fac Gar Fac Peak Influence 921 | 15 152 153 325 110 . 5 158 85 921 489 Initial 483 | . 9 . . 100 . . . 71 59 483 Average 253 | 5 69 26 175 49 . 1 73 71 604 317 Maximum Alert Level 3 | . . . 1 . . . . . 3 2 Low Security (%) 52 | 100 100 100 48 100 . 100 100 100 15 3 Level 1 24 | . . . 51 . . . . . 8 69 Level 2 11 | . . . . . . . . . 27 26 Level 3 12 | . . . . . . . . . 48 . Level 4 . | . . . . . . . . . . . Level 5 . | . . . . . . . . . . . High Security . | . . . . . . . . . . . Max Security . | . . . . . . . . . . . Squads Dispatched 13 | . . . 2 . . . 1 1 . 9 Investigation 4 | . . . 1 . . . 1 1 . 1 Extermination 4 | . . . . . . . . . . 4 Reinforcement 2 | . . . 1 . . . . . . 1 Assault . | . . . . . . . . . . . Garrison 3 | . . . . . . . . . . 3 Intercept . | . . . . . . . . . . . Construction Impeded 1 | . . . . . . . . . . 1 Haulers Reinforced . | . . . . . . . . . . . Stealth | -11 -10 -10 -9 -9 -9 -8 -8 -7 -7 -7 --------- Run | Scr Mat Min Mat Min Exi Min Mat Fac Gar Fac Distress Signals 7 | . 1 . 3 . . . 3 . . . Communications Jammed . | . . . . . . . . . . . Distress Signals . | . . . . . . . . . . . Times Spotted 99 | . 7 7 38 . . . 13 . 21 13 Peak Tracking Total 10 | . 3 2 4 . . . 10 . 4 3 Tactical Retreats 9 | . . 1 4 . . . 3 . . 1 Traps | -11 -10 -10 -9 -9 -9 -8 -8 -7 -7 -7 ------- Run | Scr Mat Min Mat Min Exi Min Mat Fac Gar Fac Traps Triggered 5 | . 2 . . . . . . . 3 . Indirectly . | . . . . . . . . . . . Trap Hack Attempts . | . . . . . . . . . . . Triggered . | . . . . . . . . . . . Disarmed . | . . . . . . . . . . . Reprogrammed . | . . . . . . . . . . . Reused 3 | . . . . . . . 1 . 2 . Traps Extracted . | . . . . . . . . . . . Installed 4 | . . . . . . . 2 . 2 . Triggered 3 | . . . . . . . 1 . 2 . Machines | -11 -10 -10 -9 -9 -9 -8 -8 -7 -7 -7 ---------- Run | Scr Mat Min Mat Min Exi Min Mat Fac Gar Fac Machines Disabled 15 | . . 3 5 . . . 2 . 4 1 Max in Single Turn 2 | . . 1 2 . . . 1 . 1 1 Garrison Relay 3 | . . . . . . . . . 3 . Machines Sabotaged . | . . . . . . . . . . . Garrisons Compromised . | . . . . . . . . . . . Overloaded Fab Kills . | . . . . . . . . . . . Fab Network Shutdowns . | . . . . . . . . . . . Hacking | -11 -10 -10 -9 -9 -9 -8 -8 -7 -7 -7 --------- Run | Scr Mat Min Mat Min Exi Min Mat Fac Gar Fac Machines Accessed 15 | . 3 . 6 . 1 . 1 1 . 3 Terminals 10 | . 3 . 4 . . . 1 . . 2 Fabricators 1 | . . . . . . . . . . 1 Repair Stations . | . . . . . . . . . . . Recycling Units 2 | . . . 2 . . . . . . . Scanalyzers . | . . . . . . . . . . . Garrison Access 1 | . . . . . . . . 1 . . Total Hacks 40 | . 7 . 15 . 1 . 4 2 . 11 Successful 25 | . 4 . 10 . 1 . 3 1 . 6 Failed 15 | . 3 . 5 . . . 1 1 . 5 Catastrophic 2 | . . . . . . . . 1 . 1 Database Lockouts . | . . . . . . . . . . . Manual 24 | . 4 . 8 . 2 . 4 . . 6 Terminals 31 | . 7 . 12 . . . 4 . . 8 Fabricators 3 | . . . . . . . . . . 3 Repair Stations . | . . . . . . . . . . . Recycling Units 3 | . . . 3 . . . . . . . Scanalyzers . | . . . . . . . . . . . Garrison Access 2 | . . . . . . . . 2 . . Terminal Hacks 8 | . 2 . 4 . 1 . . . . 1 Robot Schematic 1 | . . . . . . . . . . 1 Robot Analysis 1 | . . . 1 . . . . . . . Branch Access Points 1 | . . . 1 . . . . . . . Zone Layout 4 | . 2 . 2 . . . . . . . EX-Prototype ID Bank 1 | . . . . . 1 . . . . . Fabricator Hacks 1 | . . . . . . . . . . 1 Load Schematic 1 | . . . . . . . . . . 1 Repair Station Hacks . | . . . . . . . . . . . Recycling Unit Hacks . | . . . . . . . . . . . Scanalyzer . | . . . . . . . . . . . Garrison Access Hacks 1 | . . . . . . . . 1 . . Unlock Access 1 | . . . . . . . . 1 . . Unauthorized Hacks 15 | . 2 . 6 . . . 3 . . 4 Terminals 13 | . 2 . 4 . . . 3 . . 4 Track 4 | . . . 1 . . . 1 . . 2 Assimilate 2 | . . . . . . . 1 . . 1 Botnet 7 | . 2 . 3 . . . 1 . . 1 Fabricators . | . . . . . . . . . . . Repair Stations . | . . . . . . . . . . . Recycling Units 2 | . . . 2 . . . . . . . Mask 2 | . . . 2 . . . . . . . Scanalyzers . | . . . . . . . . . . . Garrison Access . | . . . . . . . . . . . Data Cores Recovered . | . . . . . . . . . . . Used . | . . . . . . . . . . . Hacking Detections 13 | . 3 . 5 . . . 1 1 . 3 Full Trace Events 4 | . . . 1 . . . 1 1 . 1 Feedback Events . | . . . . . . . . . . . Feedback Blocked . | . . . . . . . . . . . Robot Schematics Acquired 1 | . . . . . . . . . . 1 Robots Built . | . . . . . . . . . . . Matter . | . . . . . . . . . . . Time . | . . . . . . . . . . . Total Robot Build Rating . | . . . . . . . . . . . Part Schematics Acquired . | . . . . . . . . . . . Parts Built . | . . . . . . . . . . . Matter . | . . . . . . . . . . . Time . | . . . . . . . . . . . Total Part Build Rating . | . . . . . . . . . . . Parts Repaired . | . . . . . . . . . . . Time . | . . . . . . . . . . . Parts Recycled . | . . . . . . . . . . . Recycled Matter . | . . . . . . . . . . . Retrieved Matter . | . . . . . . . . . . . Retrieved Components . | . . . . . . . . . . . Parts Scanalyzed . | . . . . . . . . . . . Part Schematics Acquired . | . . . . . . . . . . . Parts Damaged . | . . . . . . . . . . . Bothacking | -11 -10 -10 -9 -9 -9 -8 -8 -7 -7 -7 ------------ Run | Scr Mat Min Mat Min Exi Min Mat Fac Gar Fac Used RIF Installer 1 | . . . . . . . . . 1 . Robots Hacked 4 | . . . . . . . . . 1 3 Non-combat 2 | . . . . . . . . . . 2 Combat 2 | . . . . . . . . . 1 1 Robot Hacks Applied 4 | . . . . . . . . . 1 3 link_fov 1 | . . . . . . . . . . 1 reboot_system 1 | . . . . . . . . . 1 . formatsys_low 1 | . . . . . . . . . . 1 formatsys_high 1 | . . . . . . . . . . 1 Relay Couplers Released 12 | . . . . . . . . . 12 . Machine Destruction 12 | . . . . . . . . . 12 . Attached 3 | . . . . . . . . . 2 1 Robots Rewired 3 | . . . . . . . . . 3 . Allies Hacked 1 | . . . . . . . . . . 1 Hacks Repelled . | . . . . . . . . . . . Allies | -11 -10 -10 -9 -9 -9 -8 -8 -7 -7 -7 -------- Run | Scr Mat Min Mat Min Exi Min Mat Fac Gar Fac Total Allies 9 | . . 3 . . . . . . 3 3 Largest Group 3 | . . 3 3 . . . . . 3 2 Highest-Rated Group 42 | . . 40 40 . . . . . 42 42 Highest-Rated Ally 32 | . . 16 16 . . . . . 14 32 Total Orders 4 | . . . . . . . . . 1 3 STAY 2 | . . . . . . . . . . 2 GUARD 1 | . . . . . . . . . 1 . COLLECT 1 | . . . . . . . . . . 1 Ally Attacks 49 | . . 5 14 . . . . . 1 29 Total Damage 1733 | . . 66 150 . . . . . . 1517 Kills 20 | . . 3 4 . . . . . . 13 Allies Corrupted . | . . . . . . . . . . . Allies Melted . | . . . . . . . . . . . Turrets Deployed 3 | . . . . . . . . . . 3 Intel | -11 -10 -10 -9 -9 -9 -8 -8 -7 -7 -7 ------- Run | Scr Mat Min Mat Min Exi Min Mat Fac Gar Fac Robot Analysis Total 1 | . . . 1 . . . . . . . Derelict Logs Recovered 3 | . . 2 . 1 . . . . . . Drone Launches . | . . . . . . . . . . . Drone Recoveries . | . . . . . . . . . . . Exploration | -11 -10 -10 -9 -9 -9 -8 -8 -7 -7 -7 ------------- Run | Scr Mat Min Mat Min Exi Min Mat Fac Gar Fac Turns Passed 12307 | 164 436 1393 2020 893 1279 1011 351 29 2757 1974 Spaces Moved 6720 | 105 258 918 995 484 666 480 512 47 1179 1076 Core 24 | 13 . . 4 . . . . . 7 . Treads 1626 | . . . . . . . . . 550 1076 Legs 4106 | 92 258 918 991 484 666 480 . . 217 . Wheels . | . . . . . . . . . . . Hover . | . . . . . . . . . . . Flight 964 | . . . . . . . 512 47 405 . Fastest Speed 50 | 50 120 120 150 180 180 210 50 50 50 160 Average Speed 150 | 111 129 138 165 180 190 210 50 50 135 161 Slowest Speed 1250 | 120 150 150 650 180 210 210 50 50 1250 180 Overloaded Moves . | . . . . . . . . . . . Propulsion Burnouts . | . . . . . . . . . . . Robots Hopped . | . . . . . . . . . . . Cave-ins Triggered . | . . . . . . . . . . . Exploration Rate (%) 44 | 5 26 93 46 56 78 82 22 1 71 11 Regions Visited 10 Branch Regions 4 Pre-discovered Areas 1 | . . 1 . . . . . . . . Known Exits Taken 2 | . . . 1 . . . . 1 . . Unknown Exits Taken 7 | 1 1 1 . 1 1 1 1 . . . Scrap Searched 5 | . . 1 . 3 . 1 . . . . Spaces Dug 6 | . . . . . . . 1 . 2 3 Terrain Destroyed 16 | . 2 . 5 . . . 1 . 2 6 Melee 6 | . . . . . . . 1 . 2 3 Projectile . | . . . . . . . . . . . AOE 10 | . 2 . 5 . . . . . . 3 Terrain Rammed . | . . . . . . . . . . . Walls Destroyed . | . . . . . . . . . . . Machines Disabled . | . . . . . . . . . . . Actions | -11 -10 -10 -9 -9 -9 -8 -8 -7 -7 -7 --------- Run | Scr Mat Min Mat Min Exi Min Mat Fac Gar Fac Total 8392 | 133 321 990 1220 495 681 482 599 51 2151 1269 Wait 1014 | . 5 32 89 . . . 65 . 678 145 Move 6709 | 104 257 917 994 483 665 479 511 46 1177 1076 Hop . | . . . . . . . . . . . Pick Up 105 | 11 5 7 22 2 6 . 6 3 39 4 Fast Attach 23 | . 7 2 5 . . 1 . . 8 . Attach 57 | 7 2 . 13 . . . 1 2 29 3 Detach 1 | . . . . . . . . . 1 . Swap 38 | 1 3 2 6 1 2 . 3 . 14 6 Drop 66 | . 7 3 13 1 8 1 6 . 22 5 Fire 264 | 10 29 25 76 6 . 1 2 . 93 22 Melee 56 | . . . . . . . 3 . 47 6 Ram . | . . . . . . . . . . . Kick 12 | . 6 2 2 2 . . . . . . Crush 1 | . . . . . . . . . . 1 Escape Stasis 39 | . . . . . . . . . 39 . Rewire 3 | . . . . . . . . . 2 1 Trap 4 | . . . . . . . 2 . 2 . Miscellaneous . | . . . . . . . . . . . Route ------- -11/Scrapyard -10/Materials -10/Mines (discovered 2 exits: *Mat x2) -9/Materials (discovered 4 exits: *Mat x2 / *Min x2) -9/Mines (discovered 2 exits: *Mat / *Exi) -9/Exiles (discovered 2 exits: [*Min x2]) -8/Mines -8/Materials (discovered 2 exits: *Fac / [Sto]) -7/Factory -7/Garrison (discovered 2 exits: *Fac x2) -7/Factory History --------- Turn | Location | Event 6 | -11/Scrapyard | Discovered new exit (range 16) 165 | -11/Scrapyard | Entered Materials 315 | -10/Materials | Build established: Mutant 363 | -10/Materials | Discovered new exit (range 16) 601 | -10/Materials | Entered Mines 773 | -10/Mines | Assisted by bots powering up and referring to "LRC-V3" 1028 | -10/Mines | Build established: Scavenger-Mutant 1073 | -10/Mines | Found a hidden stash of uninstalled traps 1225 | -10/Mines | Discovered new exit (range 15) 1309 | -10/Mines | Discovered new exit (range 13) 1329 | -10/Mines | Core integrity fell below 50% 1331 | -10/Mines | Received a Rocket Launcher from a helpful Derelict 1380 | -10/Mines | Build established: Mutant 1697 | -10/Mines | Learned Materials terminal intel 1715 | -10/Mines | Learned location of Storage (-8) 1994 | -10/Mines | Entered Materials 1994 | -9/Materials | Accompanied by 3 allies 1994 | -9/Materials | Evolved 2 slots: Utility x2 1995 | -9/Materials | Loaded intel: 12 terminal locations 2652 | -9/Materials | Discovered new exit (range 9) 2671 | -9/Materials | Identified exit to Mines 3079 | -9/Materials | Build established: Scavenger-Mutant 3794 | -9/Materials | Lost 8 parts (2p2n1u3w) 3934 | -9/Materials | Discovered new exit (range 14) 4014 | -9/Materials | Entered Mines 4216 | -9/Mines | Deemed a non-threat by the Exiles lab entrance 4549 | -9/Mines | Discovered new exit (range 14) 4602 | -9/Mines | Learned Materials machine intel 4896 | -9/Mines | Discovered new exit (range 6) 4907 | -9/Mines | Entered Exiles 4952 | -9/Exiles | Discovered new exit (range 15) 4974 | -9/Exiles | Met 8R-AWN 5010 | -9/Exiles | Met EX-HEX 5096 | -9/Exiles | Met EX-BIN 5134 | -9/Exiles | Aligned with FarCom system 5136 | -9/Exiles | Given EX-Vault access code 5194 | -9/Exiles | Opened EX-Vault 5211 | -9/Exiles | Found Firepult 5262 | -9/Exiles | Found Deploy-a-Sentry 5265 | -9/Exiles | Found Deploy-a-Sentry 5268 | -9/Exiles | Found Deploy-a-Sentry 5319 | -9/Exiles | Warned to stay clear of 0b10 Research branches 5382 | -9/Exiles | Met EX-DEC 5578 | -9/Exiles | Visited The Gauntlet 5933 | -9/Exiles | Found Flying Fortress v7 6156 | -9/Exiles | Discovered new exit (range 11) 6186 | -9/Exiles | Stole three prototypes: Firepult, Deploy-a-Sentry, Flying Fortress v7 6186 | -9/Exiles | Entered Mines 6488 | -8/Mines | Build established: Scavenger-Skirmisher 7170 | -8/Mines | Discovered new exit (range 8) 7197 | -8/Mines | Entered Materials 7197 | -8/Materials | Evolved 2 slots: Propulsion x2 7198 | -8/Materials | Loaded intel: 68 machine locations 7433 | -8/Materials | Discovered new exit (range 16) 7509 | -8/Materials | Build established: Scout 7511 | -8/Materials | Discovered new exit (range 5) 7548 | -8/Materials | Entered Factory 7548 | -7/Factory | Evolved 2 slots: Power x1, Utility x1 7550 | -7/Factory | FarCom data flow suspended 7576 | -7/Factory | Identified exit to Garrison 7577 | -7/Factory | Entered Garrison 7884 | -7/Garrison | Triggered checkpoint 7953 | -7/Garrison | Garrison Relay disabled 8028 | -7/Garrison | Triggered checkpoint 8125 | -7/Garrison | Triggered checkpoint 8179 | -7/Garrison | Triggered checkpoint 8288 | -7/Garrison | Lost 5 parts (2p2u1w) 8413 | -7/Garrison | Build established: Mutant 8435 | -7/Garrison | Core integrity fell below 50% 8722 | -7/Garrison | Discovered new exit (range 10) 8925 | -7/Garrison | Build established: Scavenger-Skirmisher 9090 | -7/Garrison | Triggered checkpoint 9149 | -7/Garrison | Lost 5 parts (2p2n1w) 9425 | -7/Garrison | Build established: Scavenger-Mutant 9517 | -7/Garrison | Garrison Relay disabled 9678 | -7/Garrison | Discovered new exit (range 9) 9710 | -7/Garrison | Triggered checkpoint 9785 | -7/Garrison | Installed Relay Interface Framework 9858 | -7/Garrison | Core integrity fell below 20% 9891 | -7/Garrison | Lost 7 parts (1p4n2w) 10257 | -7/Garrison | Garrison Relay disabled 10304 | -7/Garrison | Triggered checkpoint 10334 | -7/Garrison | Entered Factory 10623 | -7/Factory | DAS Turret deployed 10922 | -7/Factory | Build established: Bothacker-Mutant 11901 | -7/Factory | Garrison activated, responded to threat 11947 | -7/Factory | DAS Turret deployed 12120 | -7/Factory | DAS Turret deployed 12177 | -7/Factory | Build established: Scavenger-Mutant 12308 | -7/Factory | Destroyed by Y-54 Guardian with Flak Gun Last Messages --------------- 12112_ Lgt. Treads destroyed. 12112_ Imp. Deuterium Engine destroyed. 12113_ K-01 Serf collects debris. 12118_ Dropped Deploy-a-Sentry. 12120_ DAS Turret deployed. 12134_ AHSTFEV:3SXGSEYV&I1VD6B P#LRHQU 12143_ Y-54 Guardian destroyed. 12150_ K-01 Serf collects debris. 12167_ Acquired 19 matter. 12169_ K-01 Serf collects debris. 12176_ G-47 Trooper destroyed. 12178_ S-27 Virus destroyed. 12180_ S-27 Virus knocked back. 12182_ Acquired Lgt. Angular Momentum Engine. 12182_ Destroyed VTOL Module. 12182_ S-27 Virus knocked back. 12184_ S-27 Virus destroyed. 12190_ System corrupted: Component data lost. 12246_ R-06 Scavenger collects Shock Rifle. 12298_ System corrupted: Energy discharge (-78). Map ----- +----------------------------------------------------+ | | | | | | | | | | | | | | | | | | | | | | | | | | | | | #######???????????????????????????########???????? | | # ??????############ ????????[ !! #???????? | | # ! ?????# ##! ??"?? # !! ##??????? | | # ###### """" ## ""S"" # ???????? | | # + + ""R"" ## "" "" # ! #???????? | | # # #### * "" "" ##= # ????????? | | # # #??# ## """ # " " #???????? | | # ?# #??# ## """"" # "T" ????????? | | ####?# #??# #? """"" # ""??????????? | | #??### #### #??? ?# ????????????? | | #??# #######+#########+####+#######???????? | | ####### @ Y ? | | k k ? | | ####### ? | | ??????# #######+#########+##################?? | | ??????###+###????????????????? ?????????????????? | | ????????????????????????????????" ???????????????? | | ????????????????????????????????? ??????????????? | | ?????????????????????????????????????????????????? | | ?????????????????????????????????????????????????? | | ?????????????????????????????????????????????????? | | ?????????????????????????????????????????????????? | | ?????????????????????????????????????????????????? | | ?????????????????????????????????????????????????? | | ?????????????????????????????????????????????????? | | ?????????????????????????????????????????????????? | | ?????????????????????????????????????????????????? | | ?????????????????????????????????????????????????? | | ?????????????????????????????????????????????????? | | ?????????????????????????????????????????????????? | | ?????????????????????????????????????????????????? | | ?????????????????????????????????????????????????? | | ?????????????????????????????????????????????????? | | ?????????????????????????????????????????????????? | | ?????????????????????????????????????????????????? | | ?????????????????????????????????????????????????? | +----------------------------------------------------+ Best States ------------- Heat Dissipation 48 Energy Generation 29 Energy Capacity 480 Matter Stores 300 Matter Capacity 300 Sight Range 16 Robot Scan Range 16 Terrain Scan Range 16 Terrain Scan Density 85 Armor Coverage 150 Evasion (%) 60 Recoil Reduction 4 Particle Charging 15 Relay Coupler Types 43 Relay Coupler Value 2 Item Schematics ----------------- None Robot Schematics ------------------ B-48 Gladiator | -7/Factory | Hacked Fabricated ------------ Nothing Alien Tech Used ----------------- None Achievements -------------- None Challenges ------------ None Game ------ Seed CouplerRefineryNeutralizer Manual? 0 Play Time 01:37:56 Cumulative 151.5 hours Start 2022.01.16 @ 17:11:11 End 2022.01.16 @ 19:14:26 Sessions 1 Manual Loads 0 Difficulty Rogue Special Mode None Game No. 110 Rogue 110 Adventurer 0 Explorer 0 Win Type - Total 0 Types 0/0/0/0/0/0/0/0/0 Lore% 41 Gallery% 57 Achievement% 39 Wizard Run 0 Options --------- ASCII 0 Keyboard 0 Movement Arrows Keybinds 0 Fullscreen 1 Font 14/Terminus Map View 72x54 Tactical HUD 1 Map Filters NONE Filters NONE Steam 1 RUN: 60da01ae-196d-40c0-a5c3-ddc70bb785c1